fUST/lending_fUST_20240314
["ID","MTS","AMOUNT","RATE_DAILY","PERIOD"]
[318832768,1710413432579,-500.0,0.00019731,2]
[318832769,1710413432588,-501.78574182,0.00019731,2]
[318832770,1710413432598,-500.0,0.00019731,2]
[318832771,1710413432607,-204.38139577,0.00019731,2]
[318832772,1710413432616,-500.0,0.00019731,2]
[318832773,1710413432628,-500.0,0.00019731,2]
[318832774,1710413432637,-500.0,0.00019731,2]
[318832775,1710413432646,-500.0,0.00019731,2]
[318832776,1710413432655,-502.06842047,0.00019731,2]
[318832777,1710413432664,-500.0,0.00019731,2]
[318832778,1710413432673,-500.5729775,0.00019731,2]
[318832779,1710413432682,-500.0,0.00019731,2]
[318832780,1710413432691,-649.39854114,0.00019731,2]
[318832781,1710413432701,-500.0,0.00019731,2]
[318832782,1710413432711,-500.0,0.00019731,2]
[318832783,1710413432720,-414.61946647,0.00019731,2]
[318832784,1710413432729,-500.0,0.00019731,2]
[318832785,1710413432738,-500.0,0.00019731,2]
[318832786,1710413432747,-500.0,0.00019731,2]
[318832787,1710413432757,-500.0,0.00019731,2]
[318832788,1710413432766,-594.73062347,0.00019731,2]
[318832789,1710413432776,-500.0,0.00019731,2]
[318832790,1710413432785,-500.0,0.00019731,2]
[318832791,1710413432875,-500.0,0.00019731,2]
[318832792,1710413432885,-500.0,0.00019731,2]
[318832793,1710413432894,-500.0,0.00019731,2]
[318832794,1710413432904,-500.0,0.00019731,2]
[318832795,1710413432913,-501.3887062,0.00019731,2]
[318832796,1710413432923,-367.85674043,0.00019731,2]
[318832797,1710413432932,-500.0,0.00019732,2]
[318832798,1710413432941,-500.0,0.00019732,2]
[318832799,1710413432951,-500.0,0.00019732,2]
[318832800,1710413432960,-500.87391294,0.00019732,2]
[318832801,1710413432969,-299.97272814,0.00019732,2]
[318832802,1710413432978,-500.0,0.00019732,2]
[318832803,1710413432988,-500.0,0.00019732,2]
[318832804,1710413432997,-500.0,0.00019732,2]
[318832805,1710413433006,-180.12,0.00019732,2]
[318832806,1710413433015,-500.0,0.00019735,2]
[318832807,1710413433024,-500.0,0.00019735,2]
[318832808,1710413433033,-500.0,0.00019735,2]
[318832809,1710413433042,-500.0,0.00019735,2]
[318832810,1710413433051,-500.0,0.00019736,2]
[318832811,1710413433060,-172.52285836,0.00019736,2]
[318832812,1710413433069,-322.73296566,0.00019736,2]
[318832813,1710413433079,-2020.56022276,0.00019736,2]
[318832814,1710413433089,-236.20338182,0.00019736,2]
[318832815,1710413433098,-280.56418145,0.00019737,2]
[318832816,1710413433107,-155.16447434,0.00019765,2]
[318832817,1710413433117,-528.57307235,0.00019765,2]
[318832818,1710413433126,-198.7967702,0.00019765,2]
[318832819,1710413433137,-171.04775531,0.00019765,2]
[318832820,1710413433148,-3500.01988252,0.00019765,2]
[318832821,1710413433158,-300.25945501,0.00019765,2]
[318832822,1710413433168,-554.30467457,0.00019765,2]
[318832823,1710413433177,-155.21730423,0.00019765,2]
[318832824,1710413433186,-160.79219782,0.00019765,2]
[318832825,1710413433196,-300.82078495,0.00019765,2]
[318832826,1710413433205,-155.44833689,0.00019765,2]
[318832827,1710413433215,-616.25212117,0.00019765,2]
[318832828,1710413433224,-4541.50174316,0.00019765,2]
[318832829,1710413433233,-155.48464561,0.00019765,2]
[318832830,1710413433244,-190.34179942,0.00019765,2]
[318832831,1710413433254,-248.47262839,0.00019765,2]
[318832832,1710413433268,-192.02408373,0.00019765,2]
[318832833,1710413433277,-155.16447434,0.00019765,2]
[318832834,1710413433288,-204.82799833,0.00019765,2]
[318832835,1710413433297,-401.74198991,0.00019765,2]
[318832836,1710413433308,-462.83914927,0.00019766,2]
[318832837,1710413433318,-155.45440484,0.00019766,2]
[318832838,1710413433328,-15267.45505346,0.00019766,2]
[318832839,1710413433338,-379.768539,0.00019767,2]
[318832840,1710413433348,-379.768539,0.00019767,2]
[318832841,1710413433358,-379.768539,0.00019767,2]
[318832842,1710413433367,-379.768539,0.00019767,2]
[318832843,1710413433378,-379.768539,0.00019767,2]
[318832844,1710413433387,-379.768539,0.00019767,2]
[318832845,1710413433397,-379.768539,0.00019767,2]
[318832846,1710413433406,-379.768539,0.00019767,2]
[318832847,1710413433415,-379.768539,0.00019767,2]
[318832848,1710413433424,-379.768539,0.00019767,2]
[318832849,1710413433434,-379.768539,0.00019767,2]
[318832850,1710413433443,-379.768539,0.00019767,2]
[318832851,1710413433454,-379.768539,0.00019767,2]
[318832852,1710413433463,-379.768539,0.00019767,2]
[318832853,1710413433472,-379.768539,0.00019767,2]
[318832854,1710413433481,-379.768539,0.00019767,2]
[318832855,1710413433491,-379.768539,0.00019767,2]
[318832856,1710413433501,-379.768539,0.00019767,2]
[318832857,1710413433510,-379.768539,0.00019767,2]
[318832858,1710413433519,-379.76854,0.00019767,2]
[318832859,1710413433528,-500.0,0.00019767,2]
[318832860,1710413433537,-500.0,0.00019767,2]
[318832861,1710413433546,-301.22252393,0.00019768,2]
[318832862,1710413433556,-500.0,0.00019768,2]
[318832863,1710413433566,-500.49654015,0.00019768,2]
[318832864,1710413433575,-500.0,0.00019768,2]
[318832865,1710413433584,-500.0,0.00019768,2]
[318832866,1710413433593,-461.92606453,0.00019768,2]
[318832867,1710413433602,-500.0,0.00019768,2]
[318832868,1710413433612,-500.0,0.00019768,2]
[318832869,1710413433623,-500.0,0.00019768,2]
[318832870,1710413433637,-500.0,0.00019768,2]
[318832871,1710413433646,-500.0,0.00019768,2]
[318832872,1710413433655,-500.0,0.00019768,2]
[318832873,1710413433664,-478.87485428,0.00019768,2]
[318832874,1710413433674,-500.0,0.00019768,2]
[318832875,1710413433684,-194.28,0.00019768,2]
[318832876,1710413433695,-186.75845828,0.00019801,2]
[318832877,1710413433704,-199.47426343,0.00019801,2]
[318832878,1710413433714,-155.42208487,0.00019801,2]
[318832879,1710413433724,-233.41228364,0.00019801,2]
[318832880,1710413433733,-241.1374586,0.00019801,2]
[318832881,1710413433743,-155.24967747,0.00019801,2]
[318832882,1710413433753,-211.93787119,0.00019801,2]
[318832883,1710413433763,-225.90113262,0.00019801,2]
[318832884,1710413433772,-668.93854649,0.00019801,2]
[318832885,1710413433782,-258.84527636,0.00019801,2]
[318832886,1710413433792,-155.55648964,0.00019801,2]
[318832887,1710413433801,-155.33454421,0.00019801,2]
[318832888,1710413433811,-155.21730423,0.00019801,2]
[318832889,1710413433819,-155.16447434,0.00019801,2]
[318832890,1710413433829,-559.44428594,0.00019801,2]
[318832891,1710413433838,-180.18994137,0.00019801,2]
[318832892,1710413433847,-1474.94168341,0.00019801,2]
[318832893,1710413433857,-245.85336353,0.00019801,2]
[318832894,1710413433866,-326.64058595,0.00019801,2]
[318832895,1710413433875,-596.40893399,0.00019801,2]
[318832896,1710413433887,-155.21730423,0.00019801,2]
[318832897,1710413433896,-201.00589487,0.00019801,2]
[318832898,1710413433905,-1952.75166099,0.00019802,2]
[318832899,1710413433915,-155.16447434,0.00019802,2]
[318832900,1710413433925,-714.11926609,0.00019802,2]
[318832901,1710413433934,-155.45141956,0.00019802,2]
[318832902,1710413433944,-435266.98058362,0.00019803,60]
[318832903,1710413433959,-2255.1880408,0.00019803,60]
[318832904,1710413433970,-336088.61890672,0.00019803,60]
[318832905,1710413433982,-703.7636435,0.00019803,60]
[318832919,1710413437898,-295.91256444,0.00019803,60]
[318832920,1710413437909,-271398.05337635,0.00019803,60]
[318832959,1710413439899,-3336.11520142,0.00019803,60]
[318832960,1710413439911,-13777.50363242,0.00019803,60]
[318832961,1710413439922,-43222.55655291,0.00019803,60]
[318832962,1710413442242,14740.74442051,0.00015029,2]
[318832964,1710413442273,1217.65469704,0.00015029,2]
[318832976,1710413442683,687.19212462,0.00015029,2]
[318832979,1710413442969,-3845.27947832,0.00019803,60]
[318832989,1710413446293,-277.20143453,0.00019605,2]
[318832990,1710413446303,-429.45007321,0.00019801,2]
[318832991,1710413446313,-180.19395156,0.00019802,2]
[318832992,1710413446323,-3430.7329,0.00019802,2]
[318832993,1710413446335,-3146.85769747,0.00019802,2]
[318832994,1710413446345,-155.21730423,0.00019802,2]
[318832995,1710413446355,-2501.55676893,0.00019802,2]
[318832996,1710413446366,-523.59684835,0.00019802,2]
[318832997,1710413446376,-398.09523134,0.00019802,2]
[318832998,1710413446386,-155.88805604,0.00019802,2]
[318832999,1710413446401,-208.46014037,0.00019802,2]
[318833000,1710413446411,-2116.47193396,0.00019802,2]
[318833001,1710413446422,-404.7741297,0.00019802,2]
[318833002,1710413446432,-204.82799833,0.00019802,2]
[318833003,1710413446442,-539.04030511,0.00019802,2]
[318833004,1710413446452,-155.23964155,0.00019802,2]
[318833005,1710413446461,-57290.48135359,0.00019803,60]
[318833006,1710413446473,-649.13818402,0.00019803,60]
[318833007,1710413446510,623.69243659,0.00015029,2]
[318833008,1710413446546,-191.54405702,0.00019802,2]
[318833009,1710413446555,-155.16447434,0.00019802,2]
[318833010,1710413446564,-2890.21692426,0.00019803,60]
[318833011,1710413458701,687.19212462,0.00015029,2]
[318833012,1710413462278,15958.39911755,0.00015029,2]
[318833013,1710413462404,623.69243659,0.00015029,2]
[318833014,1710413465150,215.35924214,0.00013842,2]
[318833015,1710413476692,687.19212462,0.00015029,2]
[318833016,1710413478249,1582.97732994,0.00015029,2]
[318833017,1710413478402,623.69243659,0.00015029,2]
[318833018,1710413494693,687.19212462,0.00015029,2]
[318833019,1710413498390,323.48601737,0.00015029,2]
[318833020,1710413514696,297.67169231,0.00015029,2]
[318833021,1710413654406,3399.80162673,0.000125,2]
[318833022,1710413669013,271.18634558,0.0001,2]
[318833023,1710413671769,155.0,0.00018,30]
[318833024,1710413965637,1000.0,0.00025,120]
[318833025,1710413978746,1000.0,0.00025,120]
[318833026,1710413989397,2000.0,0.00024,120]
[318833027,1710414000779,2000.0,0.00023,99]
[318833041,1710414490851,1059.277664,0.0001411,2]
[318833058,1710414514278,754.682382,0.00014108,2]
[318833064,1710414546812,1017.9514912,0.00014104,2]
[318833074,1710414557513,1984.4959834,0.00014103,2]
[318833075,1710414582425,15720.6986822,0.00014102,2]
[318833078,1710414606430,3223.52670201,0.00015087,2]
[318833079,1710414607237,2599.63259754,0.00015087,2]
[318833080,1710414615909,806.52923668,0.00015087,2]
[318833081,1710414620143,245.1357578,0.00015087,2]
[318833082,1710414627542,3146.85769747,0.00015087,2]
[318833100,1710414632063,-1607.51480522,0.00015088,2]
[318833101,1710414632073,-208.46014037,0.00015088,2]
[318833102,1710414632082,-1081.53934975,0.00015089,2]
[318833103,1710414632092,-3430.7329,0.0001509,2]
[318833104,1710414632102,-2116.47193396,0.0001509,2]
[318833105,1710414632113,-290.71602797,0.0001509,2]
[318833106,1710414632123,-2651.32966416,0.0001509,2]
[318833107,1710414633337,338.7091611,0.00015087,2]
[318833197,1710414638180,-1671.04842979,0.0001509,2]
[318833370,1710414640079,-10945.07695951,0.0001509,2]
[318833372,1710414640090,-300.0,0.00015095,2]
[318833374,1710414640100,-538.775888,0.00016351,2]
[318833376,1710414640110,-310.33194602,0.00016911,2]
[318833379,1710414640126,-900.91195771,0.00018298,2]
[318833381,1710414640136,-157.684887,0.00019178,2]
[318833383,1710414640145,-166.666666,0.00019178,2]
[318833385,1710414640155,-155.16602765,0.0001955,2]
[318833386,1710414640165,-166.666666,0.00019627,2]
[318833389,1710414640175,-1000.0,0.00019702,2]
[318833390,1710414640185,-4626.87224253,0.00019734,2]
[318833392,1710414640195,-331.41242449,0.00019801,2]
[318833394,1710414640205,-500.0,0.00019801,2]
[318833396,1710414640218,-500.0,0.00019801,2]
[318833398,1710414640228,-500.0,0.00019801,2]
[318833401,1710414640239,-500.0,0.00019801,2]
[318833403,1710414640249,-6439.77448115,0.00019801,2]
[318833405,1710414640260,-393.30494078,0.00019801,2]
[318833407,1710414640269,-528.8455798,0.00019801,2]
[318833409,1710414640280,-155.91462232,0.00019801,2]
[318833411,1710414640289,-616.25212117,0.00019801,2]
[318833413,1710414640299,-375.78520709,0.00019801,2]
[318833415,1710414640308,-298.59392955,0.00019801,2]
[318833417,1710414640320,-363.23604005,0.00019801,2]
[318833419,1710414640329,-179.7888452,0.00019801,2]
[318833421,1710414640338,-155.23172658,0.00019802,2]
[318833423,1710414640348,-155.58139165,0.00019802,2]
[318833425,1710414640358,-170.91772147,0.00019802,2]
[318833427,1710414640367,-1169.20023289,0.00019802,2]
[318833429,1710414640380,-15494.22259867,0.00019802,2]
[318833431,1710414640390,-187.86271944,0.00019802,2]
[318833433,1710414640399,-155.2529692,0.00019802,2]
[318833435,1710414640408,-277.20143453,0.00019802,2]
[318833437,1710414640417,-3223.52670201,0.00019832,2]
[318833449,1710414640517,-2599.63259754,0.00019832,2]
[318833451,1710414640529,-245.1357578,0.00019832,2]
[318833453,1710414640538,-884.27820894,0.00019832,2]
[318833455,1710414640548,-500.0,0.00019832,2]
[318833457,1710414640556,-500.0,0.00019832,2]
[318833459,1710414640566,-500.0,0.00019832,2]
[318833461,1710414640575,-500.0,0.00019832,2]
[318833463,1710414640584,-500.0,0.00019832,2]
[318833465,1710414640593,-500.0,0.00019832,2]
[318833468,1710414640607,-500.0,0.00019832,2]
[318833469,1710414640616,-500.0,0.00019832,2]
[318833471,1710414640630,-500.0,0.00019832,2]
[318833473,1710414640639,-500.0,0.00019832,2]
[318833475,1710414640650,-500.0,0.00019832,2]
[318833477,1710414640659,-500.0,0.00019832,2]
[318833479,1710414640669,-560.03367469,0.00019832,2]
[318833481,1710414640678,-309.68237472,0.00019832,2]
[318833483,1710414640688,-500.0,0.00019833,2]
[318833485,1710414640696,-500.0,0.00019833,2]
[318833487,1710414640706,-500.0,0.00019833,2]
[318833489,1710414640715,-500.0,0.00019833,2]
[318833491,1710414640724,-500.0,0.00019833,2]
[318833493,1710414640733,-500.0,0.00019833,2]
[318833495,1710414640742,-29082.41933822,0.00019834,60]
[318833498,1710414640753,-19777.52587978,0.00019834,60]
[318833500,1710414640764,-416.64966704,0.00019834,60]
[318833770,1710414643101,-2477.09755515,0.00019832,2]
[318833772,1710414643110,-6218.10963204,0.00019834,60]
[318833774,1710414643123,-2387.73581982,0.00019834,60]
[318833782,1710414643186,-3915.14932259,0.00019834,60]
[318833784,1710414643197,-1132.90395109,0.00019834,60]
[318834129,1710414646759,-290.71602797,0.00019832,2]
[318834131,1710414646769,-1129.25412147,0.00019832,2]
[318834133,1710414646778,-208.46014037,0.00019832,2]
[318834135,1710414646788,-3913.3982275,0.00019834,60]
[318834144,1710414646864,-26489.8706663,0.00019834,60]
[318834146,1710414646876,-1373.88588,0.00019834,60]
[318834148,1710414646887,-471.37355978,0.00019834,60]
[318834150,1710414646900,-969.0186623,0.00019834,60]
[318834692,1710414662851,370.70438597,0.00015087,2]
[318834695,1710415537543,651.57439407,0.0002,30]
[318834771,1710415832439,-208.46014037,0.00017912,2]
[318834774,1710415832449,-666.46313352,0.00017912,2]
[318834778,1710415832462,-2764.26976648,0.00017912,2]
[318834781,1710415832471,-3223.52670201,0.00017913,2]
[318834784,1710415832481,-338.7091611,0.00017913,2]
[318834787,1710415832490,-1607.51480522,0.00017914,2]
[318834790,1710415832499,-269.387944,0.00018272,2]
[318834793,1710415832510,-202.06283149,0.000187,2]
[318834796,1710415832520,-157.684887,0.00019178,2]
[318834799,1710415832537,-166.666666,0.00019178,2]
[318834801,1710415832547,-1588.49408202,0.00019237,2]
[318834803,1710415832557,-166.666666,0.00019627,2]
[318834805,1710415832567,-786.06025435,0.00019832,2]
[318834807,1710415832577,-155.21574989,0.00019832,2]
[318834809,1710415832588,-361.8163266,0.00019832,2]
[318834811,1710415832601,-334.35250419,0.00019832,2]
[318834814,1710415832614,-798.32796758,0.00019832,2]
[318834816,1710415832625,-458.23490305,0.00019832,2]
[318834818,1710415832636,-1474.94168341,0.00019832,2]
[318834820,1710415832646,-289.88184882,0.00019832,2]
[318834821,1710415832655,-3145.91502391,0.00019832,2]
[318834823,1710415832664,-186.75845828,0.00019832,2]
[318834825,1710415832674,-104.86886207,0.00019832,2]
[318835075,1710415838217,-511.3832591,0.00019832,2]
[318835077,1710415838227,-69.55795276,0.00019832,2]
[318835080,1710415838238,-110.23089244,0.00019832,2]
[318835081,1710415838248,-580.94121186,0.00019832,2]
[318835084,1710415838257,-485.18682147,0.00019834,2]
[318835086,1710415838266,-278.28107423,0.00019834,2]
[318835088,1710415838279,-221.71892577,0.00019834,2]
[318835091,1710415838288,-157.07,0.00019834,2]
[318835094,1710415838297,-500.0,0.00019834,2]
[318835096,1710415838306,-500.0,0.00019834,2]
[318835098,1710415838316,-500.0,0.00019834,2]
[318835100,1710415838325,-500.0,0.00019834,2]
[318835102,1710415838334,-500.0,0.00019834,2]
[318835104,1710415838343,-500.0,0.00019834,2]
[318835106,1710415838354,-458.82467617,0.00019834,2]
[318835108,1710415838363,-229235.34692091,0.00019835,60]
[318835398,1710415841349,-552.27890205,0.00019835,60]
[318835405,1710415841406,-13325.8,0.00019835,60]
[318835408,1710415841418,-5241.89848587,0.00019835,60]
[318835461,1710415843221,-279.7755,0.00019835,60]
[318835462,1710415843279,-8762.09610347,0.00019835,60]
[318835586,1710417032356,-3430.7329,0.0001788,2]
[318835588,1710417032366,-832.27177597,0.00017881,2]
[318835590,1710417032375,-208.46014037,0.00017882,2]
[318835592,1710417032385,-338.7091611,0.00017882,2]
[318835594,1710417032394,-624.65442974,0.00017883,2]
[318835596,1710417032404,-3223.52670201,0.00018064,2]
[318835598,1710417032413,-480.247113,0.00018556,2]
[318835600,1710417032422,-262.08950108,0.00019,5]
[318835601,1710417032431,-166.666666,0.00019178,2]
[318835602,1710417032441,-166.666666,0.00019627,2]
[318835604,1710417032450,-359.41594689,0.00019833,2]
[318835606,1710417032459,-156.95174119,0.00019833,2]
[318835608,1710417032468,-612.01725545,0.00019833,2]
[318835610,1710417032477,-280.54842491,0.00019833,2]
[318835611,1710417032486,-155.34178386,0.00019833,2]
[318835612,1710417032496,-273.22812433,0.00019833,2]
[318835614,1710417032505,-155.57810821,0.00019833,2]
[318835616,1710417032514,-616.25212117,0.00019833,2]
[318835618,1710417032523,-669.42782765,0.00019833,2]
[318835620,1710417032532,-3326.82556135,0.00019833,2]
[318835622,1710417032541,-1722.66681867,0.00019834,2]
[318835624,1710417032552,-208.41812406,0.00019834,2]
[318835626,1710417032562,-259.84900373,0.00019835,2]
[318835628,1710417032571,-176.122321,0.00019847,2]
[318835629,1710417032584,-1996.96319579,0.0001988,2]
[318835630,1710417032594,-411.92459757,0.00019912,2]
[318835631,1710417032603,-500.0,0.00019913,2]
[318835633,1710417032612,-500.0,0.00019913,2]
[318835635,1710417032621,-500.0,0.00019913,2]
[318835637,1710417032631,-500.0,0.00019913,2]
[318835639,1710417032640,-500.0,0.00019913,2]
[318835640,1710417032649,-500.0,0.00019913,2]
[318835641,1710417032658,-500.0,0.00019913,2]
[318835643,1710417032667,-500.0,0.00019913,2]
[318835644,1710417032677,-500.0,0.00019913,2]
[318835645,1710417032686,-500.0,0.00019913,2]
[318835646,1710417032695,-500.0,0.00019913,2]
[318835647,1710417032704,-500.0,0.00019913,2]
[318835648,1710417032713,-500.0,0.00019913,2]
[318835649,1710417032722,-152.49,0.00019913,2]
[318835650,1710417032731,-2685.27948776,0.00019913,60]
[318835651,1710417032743,-12327.59393803,0.00019913,60]
[318835673,1710417038378,-722000.0,0.00019913,60]
[318835675,1710417038390,-435.31256908,0.00019913,60]
[318835850,1710417040450,-49994.781543,0.00019913,60]
[318835855,1710417040494,-2674.62929137,0.00019913,60]
[318836159,1710417043458,-623.13034802,0.00019913,60]
[318836290,1710417046675,-338.7091611,0.00019912,2]
[318836291,1710417046685,-4016.96128143,0.00019913,60]
[318836292,1710417046697,-15035.6478,0.00019913,60]
[318836293,1710417046807,-656.65764238,0.00019913,60]
[318836361,1710418232837,-280.47329147,0.00018731,2]
[318836363,1710418232850,-1194.8697995,0.00018731,2]
[318836364,1710418232860,-554.84785065,0.00018731,2]
[318836366,1710418232870,-338.7091611,0.00018731,2]
[318836367,1710418232880,-208.46014037,0.00018732,2]
[318836368,1710418232889,-3430.7329,0.00018732,2]
[318836369,1710418232898,-3223.52670201,0.00018733,2]
[318836371,1710418232908,-157.684887,0.00019178,2]
[318836373,1710418232917,-166.666666,0.00019178,2]
[318836375,1710418232926,-166.666666,0.00019627,2]
[318836377,1710418232935,-170.88029339,0.00019713,2]
[318836379,1710418232945,-155.16447434,0.0001983,2]
[318836381,1710418232954,-2114.85760717,0.00019911,2]
[318836383,1710418232964,-215.19620704,0.00019911,2]
[318836385,1710418232973,-616.25212117,0.00019911,2]
[318836387,1710418232982,-155.20285712,0.00019911,2]
[318836389,1710418232991,-669.42782765,0.00019911,2]
[318836391,1710418233001,-155.25792279,0.00019912,2]
[318836393,1710418233010,-155.99696445,0.00019912,2]
[318836395,1710418233019,-280.54842491,0.00019912,2]
[318836396,1710418233028,-188.50655472,0.00019912,2]
[318836397,1710418233038,-500.0,0.00019923,2]
[318836398,1710418233047,-500.0,0.00019923,2]
[318836399,1710418233056,-500.0,0.00019923,2]
[318836400,1710418233066,-500.0,0.00019923,2]
[318836401,1710418233075,-500.0,0.00019923,2]
[318836402,1710418233084,-500.0,0.00019923,2]
[318836403,1710418233094,-500.0,0.00019923,2]
[318836404,1710418233103,-500.0,0.00019923,2]
[318836405,1710418233112,-500.0,0.00019923,2]
[318836406,1710418233121,-500.0,0.00019923,2]
[318836407,1710418233131,-256.56,0.00019923,2]
[318836408,1710418233140,-410970.83937129,0.00019924,60]
[318836409,1710418233152,-463.7665836,0.00019924,60]
[318836473,1710418238555,-323.255996,0.0001869,2]
[318836475,1710418238565,-1368.90270774,0.00019924,60]
[318836477,1710418238576,-3942.99753279,0.00019924,60]
[318836479,1710418238586,-4776.23745109,0.00019924,60]
[318836481,1710418238598,-5102.63504133,0.00019924,60]
[318836483,1710418238608,-1829.26472729,0.00019924,60]
[318836811,1710418241769,-6714.49999979,0.00019924,60]
[318836898,1710418246921,-338.7091611,0.00019923,2]
[318836899,1710418246932,-705.2908389,0.00019924,60]
[318836900,1710418246945,-1719.50339391,0.00019924,60]
[318836901,1710418246959,-51762.45345396,0.00019924,60]
[318836902,1710418246987,-6787.67641373,0.00019924,60]
[318836903,1710418246998,-778.92,0.00019924,60]
[318836906,1710418480045,1000.0,0.00025,120]
[318836984,1710419379466,2025.67,0.00016,2]
[318837194,1710419438794,-462.37320887,0.0001605,2]
[318837196,1710419438803,-208.46014037,0.0001605,2]
[318837198,1710419438813,-644.76009537,0.0001605,2]
[318837200,1710419438822,-300.0,0.00016051,2]
[318837202,1710419438832,-280.71313691,0.00016076,2]
[318837204,1710419438842,-2022.20344086,0.00016077,2]
[318837206,1710419438851,-1475.34309097,0.00016077,2]
[318837208,1710419438860,-3430.7329,0.00016078,2]
[318837210,1710419438870,-161.627998,0.0001609,2]
[318837212,1710419438879,-360703.89462799,0.00016504,7]
[318837214,1710419438890,-824.39740496,0.00016504,7]
[318837216,1710419438901,-50957.90456705,0.00016504,7]
[318837218,1710419438911,-157.684887,0.00019178,2]
[318837220,1710419438920,-166.666666,0.00019178,2]
[318837222,1710419438929,-166.666666,0.00019627,2]
[318837224,1710419438938,-310.17088421,0.00019902,2]
[318837226,1710419438947,-155.32908891,0.00019922,2]
[318837228,1710419438957,-326.65088458,0.00019922,2]
[318837230,1710419438966,-498.20367663,0.00019922,2]
[318837232,1710419438975,-155.23336653,0.00019922,2]
[318837234,1710419438983,-22468.00152201,0.00019922,2]
[318837236,1710419438992,-1080.91906796,0.00019922,2]
[318837238,1710419439003,-331.25647707,0.00019922,2]
[318837240,1710419439014,-1935.94727509,0.00019922,2]
[318837242,1710419439023,-455.72023644,0.00019922,2]
[318837244,1710419439035,-207.09446127,0.00019922,2]
[318837246,1710419439045,-542.59844934,0.00019922,2]
[318837248,1710419439054,-310.14732482,0.00019922,2]
[318837250,1710419439063,-746.66773597,0.00019923,2]
[318837252,1710419439072,-1614.92420115,0.00019923,2]
[318837254,1710419439081,-204.82799833,0.00019923,2]
[318837256,1710419439091,-658.176099,0.00019927,2]
[318837258,1710419439100,-228.91444,0.00019927,2]
[318837260,1710419439109,-281.417068,0.00019927,2]
[318837262,1710419439118,-500.0,0.00019999,2]
[318837264,1710419439128,-500.0,0.00019999,2]
[318837266,1710419439137,-500.0,0.00019999,2]
[318837268,1710419439146,-500.0,0.00019999,2]
[318837270,1710419439155,-500.0,0.00019999,2]
[318837272,1710419439164,-500.0,0.00019999,2]
[318837274,1710419439173,-76593.38476301,0.0002,2]
[318837276,1710419439182,-170.24010473,0.0002,2]
[318837278,1710419439191,-52005.73775012,0.0002,2]
[318837280,1710419439200,-1296.18355282,0.0002,2]
[318837282,1710419439210,-71405.66816814,0.0002,2]
[318837284,1710419439219,-635.9890952,0.0002,2]
[318837287,1710419439239,-151.0,0.0002,2]
[318837289,1710419439249,-659.15229356,0.0002,2]
[318837291,1710419439259,-803.37177258,0.0002,2]
[318837293,1710419439272,-793.02642531,0.0002,2]
[318837295,1710419439281,-151.65770976,0.0002,2]
[318837297,1710419439291,-400.0,0.0002,2]
[318837299,1710419439300,-2099.92225467,0.0002,2]
[318837301,1710419439310,-179.98308147,0.0002,2]
[318837303,1710419439319,-825.86838944,0.0002,2]
[318837305,1710419439329,-155.16602765,0.00020033,2]
[318837307,1710419439339,-155.16602765,0.00020033,2]
[318837309,1710419439348,-9001.59188751,0.00020034,2]
[318837311,1710419439358,-2359.21638644,0.00020034,2]
[318837313,1710419439368,-8000.0,0.00020034,2]
[318837315,1710419439380,-1950.95817719,0.00020035,2]
[318837317,1710419439389,-155.99696445,0.00020035,2]
[318837319,1710419439400,-500.0,0.00020036,2]
[318837321,1710419439410,-500.0,0.00020036,2]
[318837323,1710419439419,-599.49,0.00020036,2]
[318837325,1710419439428,-950.96522879,0.00020051,2]
[318837327,1710419439438,-166.666666,0.00020076,2]
[318837329,1710419439447,-400372.47423015,0.00020144,60]
[318837623,1710419442429,-290.71602797,0.00016049,2]
[318837625,1710419442439,-338.7091611,0.00016049,2]
[318837627,1710419442448,-181.15329669,0.00020032,2]
[318837629,1710419442458,-7428.95509376,0.00020144,60]
[318837631,1710419442469,-10405.71948467,0.00020144,60]
[318837636,1710419442502,-3433.31989791,0.00020144,60]
[318837732,1710419443857,-1918.0,0.00020144,60]
[318837733,1710419443870,-74607.08511497,0.00020144,60]